{"text_format":"3","workbook":"xlsx","n_sheets":1,"sheets":["Kiadási költségvetés"],"not_rendered":{"charts":2,"defined_names":3},"read":"whole","date_system":"1900"}

{"sheet":"Kiadási költségvetés","index":0,"n_rows":47,"n_cols":7,"rows_kept":47,"merged":[[0,1,0,4],[0,5,0,6],[16,1,16,6],[47,1,47,6]]}
[null,"Kiadási költségvetés",{"$nulls":3},"CONTOSO, 2013"]
[]
[]
[null," SZEMÉLYZETI KÖLTSÉGVETÉS"]
{"$rows_empty":7}
[null,"ÁLLAPOT","SZEMÉLYZET","KÖLTSÉGVETÉS","TÉNYLEGES","KÜLÖNBSÉG (Ft)","KÜLÖNBSÉG (%)"]
[null,{"$f":"IFERROR(táblázatSzemélyiKöltségek[[#This Row],[TÉNYLEGES]]/táblázatSzemélyiKöltségek[[#This Row],[KÖLTSÉGVETÉS]],\"\")","v":{"v":1.13,"d":"1.13 Ft"}},"Iroda",{"v":500,"d":"500.00 Ft"},{"v":565,"d":"565.00 Ft"},{"$f":"táblázatSzemélyiKöltségek[[#This Row],[KÖLTSÉGVETÉS]]-táblázatSzemélyiKöltségek[[#This Row],[TÉNYLEGES]]","v":{"v":-65,"d":"-65.00 Ft"}},{"$f":"IFERROR(táblázatSzemélyiKöltségek[KÜLÖNBSÉG (Ft)]/táblázatSzemélyiKöltségek[KÖLTSÉGVETÉS],\"\")","v":{"v":-0.13,"d":"-13%"}}]
[null,{"$f":"IFERROR(táblázatSzemélyiKöltségek[[#This Row],[TÉNYLEGES]]/táblázatSzemélyiKöltségek[[#This Row],[KÖLTSÉGVETÉS]],\"\")","v":{"v":1.2,"d":"1.20 Ft"}},"Áruház",{"v":125,"d":"125.00 Ft"},{"v":150,"d":"150.00 Ft"},{"$f":"táblázatSzemélyiKöltségek[[#This Row],[KÖLTSÉGVETÉS]]-táblázatSzemélyiKöltségek[[#This Row],[TÉNYLEGES]]","v":{"v":-25,"d":"-25.00 Ft"}},{"$f":"IFERROR(táblázatSzemélyiKöltségek[KÜLÖNBSÉG (Ft)]/táblázatSzemélyiKöltségek[KÖLTSÉGVETÉS],\"\")","v":{"v":-0.2,"d":"-20%"}}]
[null,{"$f":"IFERROR(táblázatSzemélyiKöltségek[[#This Row],[TÉNYLEGES]]/táblázatSzemélyiKöltségek[[#This Row],[KÖLTSÉGVETÉS]],\"\")","v":{"v":1,"d":"1.00 Ft"}},"Értékesítők",{"v":100,"d":"100.00 Ft"},{"v":100,"d":"100.00 Ft"},{"$f":"táblázatSzemélyiKöltségek[[#This Row],[KÖLTSÉGVETÉS]]-táblázatSzemélyiKöltségek[[#This Row],[TÉNYLEGES]]","v":{"v":0,"d":"0.00 Ft"}},{"$f":"IFERROR(táblázatSzemélyiKöltségek[KÜLÖNBSÉG (Ft)]/táblázatSzemélyiKöltségek[KÖLTSÉGVETÉS],\"\")","v":{"v":0,"d":"0%"}}]
[null,{"$f":"IFERROR(táblázatSzemélyiKöltségek[[#This Row],[TÉNYLEGES]]/táblázatSzemélyiKöltségek[[#This Row],[KÖLTSÉGVETÉS]],\"\")","v":{"v":0.9,"d":"0.90 Ft"}},"Egyéb",{"v":100,"d":"100.00 Ft"},{"v":90,"d":"90.00 Ft"},{"$f":"táblázatSzemélyiKöltségek[[#This Row],[KÖLTSÉGVETÉS]]-táblázatSzemélyiKöltségek[[#This Row],[TÉNYLEGES]]","v":{"v":10,"d":"10.00 Ft"}},{"$f":"IFERROR(táblázatSzemélyiKöltségek[KÜLÖNBSÉG (Ft)]/táblázatSzemélyiKöltségek[KÖLTSÉGVETÉS],\"\")","v":{"v":0.1,"d":"10%"}}]
[]
[]
[null," MŰKÖDÉSI KÖLTSÉGVETÉS"]
{"$rows_empty":7}
[null,"ÁLLAPOT","MŰKÖDÉSI","KÖLTSÉGVETÉS","TÉNYLEGES","KÜLÖNBSÉG (Ft)","KÜLÖNBSÉG (%)"]
[null,{"$f":"IFERROR(táblázatMűködésiKöltségek[[#This Row],[TÉNYLEGES]]/táblázatMűködésiKöltségek[[#This Row],[KÖLTSÉGVETÉS]],\"\")","v":{"v":0.98,"d":"0.98 Ft"}},"Hirdetés",{"v":250,"d":"250.00 Ft"},{"v":245,"d":"245.00 Ft"},{"$f":"táblázatMűködésiKöltségek[[#This Row],[KÖLTSÉGVETÉS]]-táblázatMűködésiKöltségek[[#This Row],[TÉNYLEGES]]","v":{"v":5,"d":"5.00 Ft"}},{"$f":"IFERROR(táblázatMűködésiKöltségek[[#This Row],[KÜLÖNBSÉG (Ft)]]/táblázatMűködésiKöltségek[[#This Row],[KÖLTSÉGVETÉS]],\"\")","v":{"v":0.02,"d":"2%"}}]
[null,{"$f":"IFERROR(táblázatMűködésiKöltségek[[#This Row],[TÉNYLEGES]]/táblázatMűködésiKöltségek[[#This Row],[KÖLTSÉGVETÉS]],\"\")","v":{"v":1.2,"d":"1.20 Ft"}},"Tartozás",{"v":125,"d":"125.00 Ft"},{"v":150,"d":"150.00 Ft"},{"$f":"táblázatMűködésiKöltségek[[#This Row],[KÖLTSÉGVETÉS]]-táblázatMűködésiKöltségek[[#This Row],[TÉNYLEGES]]","v":{"v":-25,"d":"-25.00 Ft"}},{"$f":"IFERROR(táblázatMűködésiKöltségek[[#This Row],[KÜLÖNBSÉG (Ft)]]/táblázatMűködésiKöltségek[[#This Row],[KÖLTSÉGVETÉS]],\"\")","v":{"v":-0.2,"d":"-20%"}}]
[null,{"$f":"IFERROR(táblázatMűködésiKöltségek[[#This Row],[TÉNYLEGES]]/táblázatMűködésiKöltségek[[#This Row],[KÖLTSÉGVETÉS]],\"\")","v":{"v":1,"d":"1.00 Ft"}},"Előnyök",{"v":100,"d":"100.00 Ft"},{"v":100,"d":"100.00 Ft"},{"$f":"táblázatMűködésiKöltségek[[#This Row],[KÖLTSÉGVETÉS]]-táblázatMűködésiKöltségek[[#This Row],[TÉNYLEGES]]","v":{"v":0,"d":"0.00 Ft"}},{"$f":"IFERROR(táblázatMűködésiKöltségek[[#This Row],[KÜLÖNBSÉG (Ft)]]/táblázatMűködésiKöltségek[[#This Row],[KÖLTSÉGVETÉS]],\"\")","v":{"v":0,"d":"0%"}}]
[null,{"$f":"IFERROR(táblázatMűködésiKöltségek[[#This Row],[TÉNYLEGES]]/táblázatMűködésiKöltségek[[#This Row],[KÖLTSÉGVETÉS]],\"\")","v":{"v":0.9,"d":"0.90 Ft"}},"Kellékek",{"v":100,"d":"100.00 Ft"},{"v":90,"d":"90.00 Ft"},{"$f":"táblázatMűködésiKöltségek[[#This Row],[KÖLTSÉGVETÉS]]-táblázatMűködésiKöltségek[[#This Row],[TÉNYLEGES]]","v":{"v":10,"d":"10.00 Ft"}},{"$f":"IFERROR(táblázatMűködésiKöltségek[[#This Row],[KÜLÖNBSÉG (Ft)]]/táblázatMűködésiKöltségek[[#This Row],[KÖLTSÉGVETÉS]],\"\")","v":{"v":0.1,"d":"10%"}}]
[null,{"$f":"IFERROR(táblázatMűködésiKöltségek[[#This Row],[TÉNYLEGES]]/táblázatMűködésiKöltségek[[#This Row],[KÖLTSÉGVETÉS]],\"\")","v":""},"Postaköltség",null,null,{"$f":"táblázatMűködésiKöltségek[[#This Row],[KÖLTSÉGVETÉS]]-táblázatMűködésiKöltségek[[#This Row],[TÉNYLEGES]]","v":{"v":0,"d":"0.00 Ft"}},{"$f":"IFERROR(táblázatMűködésiKöltségek[[#This Row],[KÜLÖNBSÉG (Ft)]]/táblázatMűködésiKöltségek[[#This Row],[KÖLTSÉGVETÉS]],\"\")","v":""}]
[null,{"$f":"IFERROR(táblázatMűködésiKöltségek[[#This Row],[TÉNYLEGES]]/táblázatMűködésiKöltségek[[#This Row],[KÖLTSÉGVETÉS]],\"\")","v":""},"Bérlés vagy jelzálog",null,null,{"$f":"táblázatMűködésiKöltségek[[#This Row],[KÖLTSÉGVETÉS]]-táblázatMűködésiKöltségek[[#This Row],[TÉNYLEGES]]","v":{"v":0,"d":"0.00 Ft"}},{"$f":"IFERROR(táblázatMűködésiKöltségek[[#This Row],[KÜLÖNBSÉG (Ft)]]/táblázatMűködésiKöltségek[[#This Row],[KÖLTSÉGVETÉS]],\"\")","v":""}]
[null,{"$f":"IFERROR(táblázatMűködésiKöltségek[[#This Row],[TÉNYLEGES]]/táblázatMűködésiKöltségek[[#This Row],[KÖLTSÉGVETÉS]],\"\")","v":""},"Értékesítési kiadások",null,null,{"$f":"táblázatMűködésiKöltségek[[#This Row],[KÖLTSÉGVETÉS]]-táblázatMűködésiKöltségek[[#This Row],[TÉNYLEGES]]","v":{"v":0,"d":"0.00 Ft"}},{"$f":"IFERROR(táblázatMűködésiKöltségek[[#This Row],[KÜLÖNBSÉG (Ft)]]/táblázatMűködésiKöltségek[[#This Row],[KÖLTSÉGVETÉS]],\"\")","v":""}]
[null,{"$f":"IFERROR(táblázatMűködésiKöltségek[[#This Row],[TÉNYLEGES]]/táblázatMűködésiKöltségek[[#This Row],[KÖLTSÉGVETÉS]],\"\")","v":""},"Adók",null,null,{"$f":"táblázatMűködésiKöltségek[[#This Row],[KÖLTSÉGVETÉS]]-táblázatMűködésiKöltségek[[#This Row],[TÉNYLEGES]]","v":{"v":0,"d":"0.00 Ft"}},{"$f":"IFERROR(táblázatMűködésiKöltségek[[#This Row],[KÜLÖNBSÉG (Ft)]]/táblázatMűködésiKöltségek[[#This Row],[KÖLTSÉGVETÉS]],\"\")","v":""}]
[null,{"$f":"IFERROR(táblázatMűködésiKöltségek[[#This Row],[TÉNYLEGES]]/táblázatMűködésiKöltségek[[#This Row],[KÖLTSÉGVETÉS]],\"\")","v":""},"Közüzemi díjak",null,null,{"$f":"táblázatMűködésiKöltségek[[#This Row],[KÖLTSÉGVETÉS]]-táblázatMűködésiKöltségek[[#This Row],[TÉNYLEGES]]","v":{"v":0,"d":"0.00 Ft"}},{"$f":"IFERROR(táblázatMűködésiKöltségek[[#This Row],[KÜLÖNBSÉG (Ft)]]/táblázatMűködésiKöltségek[[#This Row],[KÖLTSÉGVETÉS]],\"\")","v":""}]
[null,{"$f":"IFERROR(táblázatMűködésiKöltségek[[#This Row],[TÉNYLEGES]]/táblázatMűködésiKöltségek[[#This Row],[KÖLTSÉGVETÉS]],\"\")","v":""},"Egyéb",null,null,{"$f":"táblázatMűködésiKöltségek[[#This Row],[KÖLTSÉGVETÉS]]-táblázatMűködésiKöltségek[[#This Row],[TÉNYLEGES]]","v":{"v":0,"d":"0.00 Ft"}},{"$f":"IFERROR(táblázatMűködésiKöltségek[[#This Row],[KÜLÖNBSÉG (Ft)]]/táblázatMűködésiKöltségek[[#This Row],[KÖLTSÉGVETÉS]],\"\")","v":""}]
[null,{"$f":"IFERROR(táblázatMűködésiKöltségek[[#This Row],[TÉNYLEGES]]/táblázatMűködésiKöltségek[[#This Row],[KÖLTSÉGVETÉS]],\"\")","v":""},"Biztosítás",null,null,{"$f":"táblázatMűködésiKöltségek[[#This Row],[KÖLTSÉGVETÉS]]-táblázatMűködésiKöltségek[[#This Row],[TÉNYLEGES]]","v":{"v":0,"d":"0.00 Ft"}},{"$f":"IFERROR(táblázatMűködésiKöltségek[[#This Row],[KÜLÖNBSÉG (Ft)]]/táblázatMűködésiKöltségek[[#This Row],[KÖLTSÉGVETÉS]],\"\")","v":""}]
[null,{"$f":"IFERROR(táblázatMűködésiKöltségek[[#This Row],[TÉNYLEGES]]/táblázatMűködésiKöltségek[[#This Row],[KÖLTSÉGVETÉS]],\"\")","v":""},"Kamat",null,null,{"$f":"táblázatMűködésiKöltségek[[#This Row],[KÖLTSÉGVETÉS]]-táblázatMűködésiKöltségek[[#This Row],[TÉNYLEGES]]","v":{"v":0,"d":"0.00 Ft"}},{"$f":"IFERROR(táblázatMűködésiKöltségek[[#This Row],[KÜLÖNBSÉG (Ft)]]/táblázatMűködésiKöltségek[[#This Row],[KÖLTSÉGVETÉS]],\"\")","v":""}]
[null,{"$f":"IFERROR(táblázatMűködésiKöltségek[[#This Row],[TÉNYLEGES]]/táblázatMűködésiKöltségek[[#This Row],[KÖLTSÉGVETÉS]],\"\")","v":""},"Telefon",null,null,{"$f":"táblázatMűködésiKöltségek[[#This Row],[KÖLTSÉGVETÉS]]-táblázatMűködésiKöltségek[[#This Row],[TÉNYLEGES]]","v":{"v":0,"d":"0.00 Ft"}},{"$f":"IFERROR(táblázatMűködésiKöltségek[[#This Row],[KÜLÖNBSÉG (Ft)]]/táblázatMűködésiKöltségek[[#This Row],[KÖLTSÉGVETÉS]],\"\")","v":""}]
[null,{"$f":"IFERROR(táblázatMűködésiKöltségek[[#This Row],[TÉNYLEGES]]/táblázatMűködésiKöltségek[[#This Row],[KÖLTSÉGVETÉS]],\"\")","v":""},"Karbantartás és javítások",null,null,{"$f":"táblázatMűködésiKöltségek[[#This Row],[KÖLTSÉGVETÉS]]-táblázatMűködésiKöltségek[[#This Row],[TÉNYLEGES]]","v":{"v":0,"d":"0.00 Ft"}},{"$f":"IFERROR(táblázatMűködésiKöltségek[[#This Row],[KÜLÖNBSÉG (Ft)]]/táblázatMűködésiKöltségek[[#This Row],[KÖLTSÉGVETÉS]],\"\")","v":""}]
[null,{"$f":"IFERROR(táblázatMűködésiKöltségek[[#This Row],[TÉNYLEGES]]/táblázatMűködésiKöltségek[[#This Row],[KÖLTSÉGVETÉS]],\"\")","v":""},"Jogi díjak",null,null,{"$f":"táblázatMűködésiKöltségek[[#This Row],[KÖLTSÉGVETÉS]]-táblázatMűködésiKöltségek[[#This Row],[TÉNYLEGES]]","v":{"v":0,"d":"0.00 Ft"}},{"$f":"IFERROR(táblázatMűködésiKöltségek[[#This Row],[KÜLÖNBSÉG (Ft)]]/táblázatMűködésiKöltségek[[#This Row],[KÖLTSÉGVETÉS]],\"\")","v":""}]
[null,{"$f":"IFERROR(táblázatMűködésiKöltségek[[#This Row],[TÉNYLEGES]]/táblázatMűködésiKöltségek[[#This Row],[KÖLTSÉGVETÉS]],\"\")","v":""},"Értékcsökkenés",null,null,{"$f":"táblázatMűködésiKöltségek[[#This Row],[KÖLTSÉGVETÉS]]-táblázatMűködésiKöltségek[[#This Row],[TÉNYLEGES]]","v":{"v":0,"d":"0.00 Ft"}},{"$f":"IFERROR(táblázatMűködésiKöltségek[[#This Row],[KÜLÖNBSÉG (Ft)]]/táblázatMűködésiKöltségek[[#This Row],[KÖLTSÉGVETÉS]],\"\")","v":""}]
[null,{"$f":"IFERROR(táblázatMűködésiKöltségek[[#This Row],[TÉNYLEGES]]/táblázatMűködésiKöltségek[[#This Row],[KÖLTSÉGVETÉS]],\"\")","v":""},"Szállítás",null,null,{"$f":"táblázatMűködésiKöltségek[[#This Row],[KÖLTSÉGVETÉS]]-táblázatMűködésiKöltségek[[#This Row],[TÉNYLEGES]]","v":{"v":0,"d":"0.00 Ft"}},{"$f":"IFERROR(táblázatMűködésiKöltségek[[#This Row],[KÜLÖNBSÉG (Ft)]]/táblázatMűködésiKöltségek[[#This Row],[KÖLTSÉGVETÉS]],\"\")","v":""}]
[null,{"$f":"IFERROR(táblázatMűködésiKöltségek[[#This Row],[TÉNYLEGES]]/táblázatMűködésiKöltségek[[#This Row],[KÖLTSÉGVETÉS]],\"\")","v":""},"Tárolás",null,null,{"$f":"táblázatMűködésiKöltségek[[#This Row],[KÖLTSÉGVETÉS]]-táblázatMűködésiKöltségek[[#This Row],[TÉNYLEGES]]","v":{"v":0,"d":"0.00 Ft"}},{"$f":"IFERROR(táblázatMűködésiKöltségek[[#This Row],[KÜLÖNBSÉG (Ft)]]/táblázatMűködésiKöltségek[[#This Row],[KÖLTSÉGVETÉS]],\"\")","v":""}]
[null,{"$f":"IFERROR(táblázatMűködésiKöltségek[[#This Row],[TÉNYLEGES]]/táblázatMűködésiKöltségek[[#This Row],[KÖLTSÉGVETÉS]],\"\")","v":""},"Egyéb",null,null,{"$f":"táblázatMűködésiKöltségek[[#This Row],[KÖLTSÉGVETÉS]]-táblázatMűködésiKöltségek[[#This Row],[TÉNYLEGES]]","v":{"v":0,"d":"0.00 Ft"}},{"$f":"IFERROR(táblázatMűködésiKöltségek[[#This Row],[KÜLÖNBSÉG (Ft)]]/táblázatMűködésiKöltségek[[#This Row],[KÖLTSÉGVETÉS]],\"\")","v":""}]
[null,null,"Összes kiadás",{"$f":"SUBTOTAL(109,táblázatMűködésiKöltségek[KÖLTSÉGVETÉS],táblázatSzemélyiKöltségek[KÖLTSÉGVETÉS])","v":{"v":1400,"d":"1,400.00 Ft"}},{"$f":"SUBTOTAL(109,táblázatMűködésiKöltségek[TÉNYLEGES],táblázatSzemélyiKöltségek[TÉNYLEGES])","v":{"v":1490,"d":"1,490.00 Ft"}},{"$f":"SUBTOTAL(109,táblázatMűködésiKöltségek[KÜLÖNBSÉG (Ft)],táblázatSzemélyiKöltségek[KÜLÖNBSÉG (Ft)])","v":{"v":-90,"d":"-90.00 Ft"}},{"$f":"IFERROR(SUM(táblázatMűködésiKöltségek[[#Totals],[KÜLÖNBSÉG (Ft)]]/táblázatMűködésiKöltségek[[#Totals],[KÖLTSÉGVETÉS]]),\"\")","v":{"v":-0.06428571428571428,"d":"-6%"}}]